bitfinex/quotes_ETHUSD_20241101
["timestamp","ask_amount","ask_price","bid_price","bid_amount"]
[1730470116677,3.88067,2576.9,2576.4,0.79955164]
[1730470116850,2.60080021,2577.2,2576.4,0.79955164]
[1730470117050,3.8811,2576.6,2576.4,0.19183276]
[1730470117372,3.8811,2576.6,2575.7,3.88242]
[1730470117373,3.88156,2576.3,2575.9,0.4524]
[1730470117581,1.4722,2576.7,2575.9,0.4524]
[1730470117884,3.88131,2576.5,2576.0,4.39306416]
[1730470118282,3.88131,2576.5,2576.0,4.39298416]
[1730470118492,5.35316,2576.7,2576.0,0.433461]
[1730470118652,3.88154,2576.3,2576.0,0.433461]
[1730470119302,3.88169,2576.2,2576.0,0.433461]
[1730470119510,3.88171,2576.2,2576.0,0.433461]
[1730470119720,3.88171,2576.2,2575.7,4.28775506]
[1730470119921,1.4259,2576.5,2575.7,0.40533506]
[1730470120089,3.88228,2575.8,2575.7,0.40533506]
[1730470120624,5.37574,2575.9,2575.7,0.40533506]
[1730470121134,3.88228,2575.8,2575.7,0.40533506]
[1730470121281,5.37588,2575.8,2575.7,0.40533506]
[1730470121592,5.37588,2575.8,2574.5,0.05821723]
[1730470121593,5.37733,2574.9,2574.5,1.61137723]
[1730470121794,3.8838,2574.8,2574.5,0.05821723]
[1730470122000,3.88391,2574.8,2574.5,0.05821723]
[1730470122290,5.37733,2574.9,2574.5,0.05821723]
[1730470123087,3.88409,2574.6,2574.5,0.05821723]
[1730470123622,6.40678502,2574.6,2574.5,0.05821723]
[1730470124188,1.4858,2573.9,2573.2,3.8862]
[1730470124521,2.60080021,2574.3,2573.5,3.88572]
[1730470124722,3.88495,2574.1,2573.6,0.07770125]
[1730470125018,3.88495,2574.1,2573.6,3.96326125]
[1730470125237,3.88464,2574.3,2573.7,3.88541]
[1730470125384,3.88464,2574.3,2573.8,0.07769249]
[1730470125780,3.88501,2574.0,2573.6,0.78489313]
[1730470126026,2.60080021,2574.3,2573.4,0.9159]
[1730470126027,6.48538021,2574.3,2573.4,0.9159]
[1730470126193,3.88509,2574.0,2573.4,4.80178]
[1730470126384,3.88476,2574.2,2573.5,0.07770133]
[1730470126623,7.76955,2574.2,2573.5,3.88567]
[1730470126823,1.4858,2574.4,2573.4,4.80176]
[1730470126824,5.37029,2574.4,2573.4,0.9159]
[1730470127121,1.5299,2574.7,2573.7,3.88541]
[1730470127464,3.88472,2574.2,2573.8,0.777091]
[1730470127765,3.88508,2574.0,2573.7,0.07769252]
[1730470128065,3.88508,2574.0,2573.4,0.9159]
[1730470128858,1.5299,2574.7,2573.7,0.55]
[1730470129019,1.5299,2574.7,2573.4,4.80172]
[1730470129020,3.88493,2574.1,2573.4,4.80172]
[1730470129224,3.88585,2573.5,2573.1,0.9159]
[1730470129655,3.88554,2573.7,2573.2,3.8862]
[1730470129820,3.88522,2573.9,2573.3,0.07771029]
[1730470130024,3.88547,2573.7,2573.3,0.07771029]
[1730470130251,1.5602,2574.2,2572.9,3.88658]
[1730470130423,3.88556,2573.7,2573.0,3.88638]
[1730470130947,3.88556,2573.7,2573.1,3.88626]
[1730470131121,3.88556,2573.7,2573.0,3.88638]
[1730470131324,5.35945,2573.5,2572.8,0.19183276]
[1730470131544,5.35945,2573.5,2572.9,0.07772423]
[1730470131545,3.88615,2573.3,2572.9,0.07772423]
[1730470131744,3.88621,2573.2,2572.8,0.19183276]
[1730470131946,3.88659,2573.0,2572.8,0.19183276]
[1730470132247,3.88639,2573.1,2572.8,0.19183276]
[1730470132477,1.4736,2573.5,2572.8,0.19183276]
[1730470132478,3.88659,2573.0,2572.8,0.19183276]
[1730470133658,5.35942,2573.5,2572.8,0.19183276]
[1730470133972,3.88666,2572.9,2572.8,0.19183276]
[1730470134386,3.88666,2572.9,2572.3,0.0777322]
[1730470134387,3.88742,2572.4,2572.3,0.0777322]
[1730470134553,1.4391,2572.9,2572.0,3.88802]
[1730470134554,3.88706,2572.7,2572.0,3.88802]
[1730470134753,3.88706,2572.7,2572.2,3.88764]
[1730470134979,3.88691,2572.8,2572.3,0.07774085]
[1730470135285,3.88712,2572.6,2572.1,3.96560085]
[1730470135485,1.4391,2572.9,2572.1,0.78535209]
[1730470135686,1.4364,2573.3,2572.3,0.9549]
[1730470135892,3.88649,2573.1,2572.5,3.88719]
[1730470136076,3.88649,2573.1,2572.6,0.07773095]
[1730470136399,3.88656,2573.0,2572.6,0.07773095]
[1730470136555,3.88656,2573.0,2572.3,0.9549]
[1730470136556,5.32256,2573.3,2572.4,0.55]
[1730470136752,5.32256,2573.3,2572.8,3.88681]
[1730470136963,3.88621,2573.2,2572.8,0.777383]
[1730470137193,3.88639,2573.1,2572.6,0.07772679]
[1730470137569,3.88639,2573.1,2572.6,3.96476679]
[1730470137763,3.88617,2573.3,2572.7,3.88686]
[1730470137964,3.88617,2573.3,2572.8,0.07772635]
[1730470138293,3.88621,2573.2,2572.6,4.43708]
[1730470138502,3.88621,2573.2,2572.7,0.85160628]
[1730470138788,3.88617,2573.3,2572.8,3.88679]
[1730470138789,3.88607,2573.3,2572.8,3.88679]
[1730470139356,3.88622,2573.2,2572.7,0.85160628]
[1730470139972,3.88638,2573.1,2572.7,0.85160628]
[1730470140300,5.45593,2573.6,2572.5,0.19183276]
[1730470140301,3.88669,2572.9,2572.5,0.19183276]
[1730470140480,3.88711,2572.6,2572.5,0.19183276]
[1730470141060,3.88779,2572.2,2571.7,0.9549]
[1730470141393,3.88814,2572.0,2571.7,0.64657684]
[1730470141634,4.5305363,2572.7,2571.7,0.64657684]
[1730470141635,3.88782,2572.2,2571.7,0.64657684]
[1730470141810,3.88788,2572.1,2571.6,3.96623016]
[1730470142209,3.88782,2572.2,2571.7,3.88836]
[1730470142545,3.88759,2572.3,2571.8,3.88831]
[1730470142893,3.88775,2572.2,2571.6,3.88849]
[1730470143098,3.88738,2572.5,2571.8,3.88824]
[1730470143436,3.88677,2572.9,2572.1,0.55]
[1730470143732,3.88608,2573.3,2572.6,3.88699]
[1730470143733,3.88646,2573.1,2572.6,3.88699]
[1730470144103,1.5478,2573.3,2572.3,0.55]
[1730470144313,3.88689,2572.8,2572.3,4.43749]
[1730470144509,3.88644,2573.1,2572.6,3.88703]
[1730470144840,3.8866,2573.0,2572.4,0.85169428]
[1730470145050,3.88642,2573.1,2572.5,0.55]
[1730470145353,3.88628,2573.2,2572.7,3.88695]
[1730470145544,3.88628,2573.2,2572.7,3.96468002]
[1730470145703,3.8865,2573.1,2572.7,1.01338502]
[1730470146201,3.88628,2573.2,2572.2,0.19183276]
[1730470146202,3.88697,2572.7,2572.3,0.9549]
[1730470146698,3.88645,2573.1,2572.5,3.88713]
[1730470146898,3.88645,2573.1,2572.7,3.88695]
[1730470147094,3.88645,2573.1,2572.5,0.55]
[1730470147301,3.88712,2572.6,2572.3,0.9549]
[1730470147515,3.88712,2572.6,2572.2,4.07943276]
[1730470147516,3.8872,2572.6,2572.2,0.19183276]
[1730470147944,3.88727,2572.5,2572.2,0.19183276]
[1730470148507,3.88692,2572.8,2572.3,3.88746]
[1730470148822,3.88692,2572.8,2572.2,0.19183276]
[1730470148823,3.88693,2572.8,2572.2,4.07946276]
[1730470149022,3.88696,2572.7,2572.2,4.07946276]
[1730470149240,3.88684,2572.8,2572.3,3.96523325]
[1730470149537,1.5635,2573.0,2572.3,3.88749]
[1730470149747,3.88631,2573.2,2572.3,0.62774207]
[1730470149923,3.88636,2573.1,2572.5,3.88717]
[1730470150254,3.88636,2573.1,2572.6,0.388717]
[1730470150960,3.88653,2573.0,2572.6,0.388717]
[1730470151117,7.77312,2573.0,2572.5,3.88715]
[1730470151321,2.6135179,2572.8,2572.2,0.19183276]
[1730470151662,3.88724,2572.6,2572.2,0.19183276]
[1730470151955,3.88742,2572.4,2572.2,0.19183276]
[1730470152125,3.88757,2572.3,2572.2,0.19183276]
[1730470152324,3.88722,2572.6,2572.2,0.19183276]
[1730470152531,1.5885,2572.7,2572.2,0.19183276]
[1730470153054,3.88752,2572.4,2572.2,0.19183276]
[1730470153556,3.88729,2572.5,2572.2,0.19183276]
[1730470154228,3.88744,2572.4,2572.2,0.19183276]
[1730470154414,0.777465,2572.4,2571.8,0.40590977]
[1730470154614,2.6135179,2572.5,2571.8,0.30590977]
[1730470154615,3.88817,2571.9,2571.8,0.30590977]
[1730470154932,3.88854,2571.7,2571.2,0.06754193]
[1730470155127,3.88854,2571.7,2571.1,0.9549]
[1730470155339,1.4896,2572.1,2571.2,0.10188217]
[1730470155340,2.6135179,2571.9,2571.2,0.10188217]
[1730470155540,3.88859,2571.7,2571.2,3.99107217]
[1730470155742,3.88859,2571.7,2571.2,3.88915]
[1730470155916,3.88859,2571.7,2571.2,3.97405181]
[1730470156116,3.88864,2571.6,2571.2,3.97405181]
[1730470156459,3.88841,2571.8,2571.2,0.87902767]
[1730470156682,3.88848,2571.7,2571.2,0.08490181]
[1730470156881,3.88863,2571.6,2571.1,3.88938]
[1730470157090,3.88879,2571.5,2571.2,0.10188217]
[1730470157291,3.889,2571.4,2571.2,0.10188217]
[1730470157452,3.88908,2571.3,2570.9,0.25013798]
[1730470157787,5.46252,2571.8,2571.0,0.18023837]
[1730470157990,1.5741,2572.1,2571.6,3.88859]
[1730470158155,3.88795,2572.1,2571.4,3.88892]
[1730470158354,1.5741,2572.4,2571.8,3.88821]
[1730470158555,1.5741,2572.4,2572.0,3.88802]
[1730470158749,5.46161,2572.4,2571.9,3.88808]
[1730470158972,1.5741,2572.4,2571.8,0.07775965]
[1730470159171,3.8873,2572.5,2572.0,3.88794]
[1730470159487,1.516,2572.7,2572.0,0.78538697]
[1730470159694,3.8875,2572.4,2571.8,0.55]
[1730470159880,3.88761,2572.3,2571.7,4.84326]
[1730470160278,3.88761,2572.3,2571.9,3.88817]
[1730470160495,5.40309,2572.7,2571.8,0.62775881]
[1730470160694,3.88712,2572.6,2572.2,3.88764]
[1730470161010,3.88731,2572.5,2572.0,3.88793]
[1730470161211,3.88731,2572.5,2571.8,4.43821]
[1730470161212,3.88734,2572.5,2571.8,0.55]
[1730470161425,1.516,2572.7,2572.0,0.55]
[1730470161717,3.88714,2572.6,2572.0,3.88802]
[1730470161873,3.88692,2572.8,2572.1,3.88778]
[1730470162069,1.516,2573.0,2572.1,0.55]
[1730470162378,1.516,2573.0,2572.2,4.84261]
[1730470162596,3.88683,2572.8,2572.2,0.9549]
[1730470162776,5.40252,2573.0,2572.5,3.88726]
[1730470163300,5.40252,2573.0,2572.5,7.77443]
[1730470163605,5.40253,2573.0,2572.1,3.88776]
[1730470163784,3.88732,2572.5,2572.1,3.88776]
[1730470164193,7.77379,2572.8,2572.1,1.077584]
[1730470164379,3.88666,2572.9,2572.1,3.88778]
[1730470164563,3.88666,2572.9,2572.3,3.88742]
[1730470164564,3.88688,2572.8,2572.3,3.88742]
[1730470164767,3.88688,2572.8,2572.2,3.96533321]
[1730470164968,3.88707,2572.7,2572.2,3.88759]
[1730470165374,3.88674,2572.9,2572.3,3.88756]
[1730470165581,3.88683,2572.8,2572.2,0.07774541]
[1730470165777,1.5768,2572.7,2572.0,3.888]
[1730470166003,3.88734,2572.5,2572.0,3.888]
[1730470166377,3.88757,2572.3,2571.9,3.88806]
[1730470166570,7.77526,2572.3,2571.9,0.77426878]
[1730470166769,3.88743,2572.4,2571.9,4.66242878]
[1730470167001,3.88742,2572.4,2571.9,4.66242878]
[1730470167207,3.88742,2572.4,2571.9,8.55052878]
[1730470167503,3.88739,2572.5,2572.0,3.88791]
[1730470167681,3.88739,2572.5,2572.0,4.66218878]
[1730470168012,3.88739,2572.5,2572.1,3.88781]
[1730470168169,3.88712,2572.6,2572.1,0.77426878]
[1730470168369,3.88713,2572.6,2572.1,0.77426878]
[1730470168609,3.88748,2572.4,2572.1,0.77426878]
[1730470168774,3.88764,2572.3,2572.1,0.77426878]
[1730470168974,3.88764,2572.3,2572.0,0.77426878]
[1730470169280,1.5768,2572.7,2572.0,0.77426878]
[1730470169487,0.41903179,2572.6,2571.9,3.88809]
[1730470169694,3.88773,2572.2,2571.9,0.77426878]
[1730470170109,3.88726,2572.5,2571.9,0.77426878]
[1730470170310,3.88794,2572.1,2571.8,0.96610154]
[1730470170511,0.41903179,2572.6,2571.8,0.19183276]
[1730470170732,3.88768,2572.3,2571.9,0.77426878]
[1730470171021,3.88779,2572.2,2571.8,0.96610154]
[1730470171201,3.88712,2572.6,2571.8,0.96610154]
[1730470171518,4.4167701,2573.6,2571.6,0.77426878]
[1730470171519,3.88796,2572.1,2571.6,0.77426878]
[1730470171688,5.40731,2572.2,2571.6,0.77426878]
[1730470171887,5.40731,2572.2,2571.7,0.77426878]
[1730470172078,3.88792,2572.1,2571.6,0.77426878]
[1730470172704,7.77588,2572.1,2571.6,0.77426878]
[1730470172891,1.5195,2572.2,2571.6,0.77426878]
[1730470172892,3.88825,2571.9,2571.6,0.77426878]
[1730470173094,3.88862,2571.7,2571.5,0.77426878]
[1730470173315,3.88887,2571.5,2571.3,0.77426878]
[1730470173527,3.88887,2571.5,2571.2,0.77426878]
[1730470173805,3.8885,2571.7,2571.2,3.99115327]
[1730470174016,3.88841,2571.8,2571.3,3.88899]
[1730470174375,3.88845,2571.8,2571.3,4.66334878]
[1730470174577,3.8885,2571.7,2571.3,3.88908]
[1730470174810,3.8885,2571.7,2571.3,4.66334878]
[1730470174970,3.88845,2571.8,2571.3,3.88897]
[1730470175190,3.88845,2571.8,2571.3,0.55]
[1730470175389,1.5528,2572.5,2571.6,3.88862]
[1730470175700,5.43948,2572.9,2572.4,3.88734]
[1730470175904,4.274016,2573.7,2572.6,3.88699]
[1730470175905,3.8864,2573.1,2572.6,3.88699]
[1730470176104,3.88663,2573.0,2572.6,0.777431]
[1730470176424,3.8864,2573.1,2572.6,0.777431]
[1730470176598,3.88622,2573.2,2572.6,4.664491]
[1730470176791,3.88606,2573.3,2572.8,3.88674]
[1730470177139,3.88606,2573.3,2572.8,3.88681]
[1730470177340,3.88606,2573.3,2572.8,0.52919763]
[1730470177497,3.8863,2573.2,2572.7,4.43682]
[1730470178924,3.88636,2573.1,2572.7,4.43682]
[1730470179139,3.88666,2572.9,2572.6,0.55]
[1730470179303,3.88689,2572.8,2572.3,4.81466]
[1730470179503,5.4561,2573.0,2572.5,3.88723]
[1730470179733,1.5695,2573.0,2572.5,3.88718]
[1730470179936,3.88668,2572.9,2572.4,3.88741]
[1730470180093,1.5695,2573.0,2572.5,3.88714]
[1730470180094,5.45603,2573.0,2572.5,3.88714]
[1730470180433,1.5695,2573.0,2572.6,3.88702]
[1730470180642,3.88646,2573.1,2572.6,3.88702]
[1730470180925,3.88621,2573.2,2572.6,4.664436]
[1730470181132,1.5546,2573.3,2572.6,3.88701]
[1730470181339,3.88652,2573.0,2572.6,3.88701]
[1730470181919,3.88627,2573.2,2572.7,3.88695]
[1730470182123,7.77257,2573.2,2572.7,3.88696]
[1730470182304,3.88645,2573.1,2572.6,3.88701]
[1730470182505,3.88645,2573.1,2572.7,3.88688]
[1730470182710,3.88645,2573.1,2572.6,5.019504]
[1730470183019,7.77294,2573.1,2572.6,5.019504]
[1730470183225,7.77292,2573.1,2572.5,4.43716]
[1730470183425,3.88645,2573.1,2572.6,3.88704]
[1730470183628,5.44076,2573.3,2572.6,3.887]
[1730470183826,1.4345,2573.6,2573.0,0.55]
[1730470184130,5.31922,2574.2,2573.7,3.88538]
[1730470184332,3.88497,2574.1,2573.6,0.55]
[1730470184540,3.88508,2574.0,2573.6,0.55]
[1730470184944,3.88497,2574.1,2573.6,0.55]
[1730470185240,3.885,2574.0,2573.6,4.43559]
[1730470185596,3.885,2574.0,2573.1,7.81353]
[1730470185597,3.88522,2573.9,2573.4,3.8858]
[1730470186035,3.88534,2573.8,2573.3,3.88592]
[1730470186195,1.4345,2574.2,2573.3,3.88592]
[1730470186196,3.88485,2574.1,2573.5,3.88566]
[1730470186392,3.88502,2574.0,2573.5,3.88566]
[1730470186899,3.88515,2573.9,2573.3,3.88596]
[1730470187191,1.4345,2574.2,2573.3,3.88596]
[1730470187398,3.88523,2573.9,2573.4,3.88588]
[1730470187649,3.88523,2573.9,2573.3,7.77193]
[1730470187797,3.88523,2573.9,2573.4,3.88586]
[1730470187999,3.88523,2573.9,2573.4,3.88588]
[1730470188219,3.88523,2573.9,2573.1,7.81345]
[1730470188220,1.4952,2573.7,2573.1,7.81345]
[1730470188396,5.38073,2573.7,2573.1,3.88624]
[1730470189105,3.88574,2573.6,2573.0,3.88651]
[1730470189435,3.88587,2573.5,2573.0,3.88651]
[1730470189595,0.538094,2573.6,2572.9,0.55]
[1730470189801,3.88638,2573.1,2572.7,0.19183276]
[1730470190041,3.88675,2572.9,2572.7,0.19183276]
[1730470190204,1.567,2573.1,2572.3,4.74789659]
[1730470190432,1.5771,2573.4,2572.5,0.9272]
[1730470190747,3.88522,2573.9,2572.9,4.81374]
[1730470190916,3.88539,2573.8,2573.3,3.88605]
[1730470192332,3.88539,2573.8,2573.1,3.88627]
[1730470192541,3.88573,2573.6,2573.1,3.88627]
[1730470192941,3.88535,2573.8,2573.2,3.88619]
[1730470193646,1.5771,2574.0,2573.2,3.88619]
[1730470193647,5.46213,2574.0,2573.5,3.88574]
[1730470193863,3.8848,2574.2,2573.6,3.88545]
[1730470194019,3.8847,2574.2,2573.7,4.43538]
[1730470194352,3.8847,2574.2,2573.7,5.36796143]
[1730470194555,3.88485,2574.1,2573.7,0.55]
[1730470194717,3.88552,2573.7,2573.3,0.55]
[1730470194919,3.88531,2573.8,2573.3,4.43598]
[1730470196345,3.88546,2573.7,2573.3,4.43598]
[1730470196854,3.88561,2573.6,2573.3,0.55]
[1730470197019,3.88531,2573.8,2573.3,0.55]
[1730470197213,3.88545,2573.7,2573.3,0.55]
[1730470197524,3.8853,2573.8,2573.3,4.43597]
[1730470197724,3.88504,2574.0,2573.5,3.88573]
[1730470197937,7.77014,2574.0,2573.5,3.88573]
[1730470198140,3.88515,2573.9,2573.5,0.55]
[1730470198461,3.8847,2574.2,2573.4,4.4359]
[1730470198625,7.77021,2574.0,2573.5,3.88573]
[1730470198958,3.88522,2573.9,2573.4,4.43576]
[1730470199420,3.88522,2573.9,2573.4,5.37343617]
[1730470200056,3.88522,2573.9,2573.2,4.86329]
[1730470200057,3.88531,2573.8,2573.3,4.43601]
[1730470200263,3.88553,2573.7,2573.3,0.55]
[1730470200557,5.43999,2574.3,2573.5,0.55]
[1730470200744,5.43999,2574.3,2573.9,0.01]
[1730470200745,7.76986,2574.1,2573.9,0.01]
[1730470200926,3.88492,2574.1,2573.9,0.01]
[1730470201254,3.885,2574.0,2573.9,0.01]
[1730470201421,3.88492,2574.1,2573.9,0.01]
[1730470201621,7.76989,2574.1,2573.9,0.01]
[1730470201816,1.5554,2574.3,2573.9,0.01]
[1730470202020,3.88493,2574.1,2573.9,0.01]
[1730470202260,3.885,2574.0,2573.9,0.01]
[1730470202971,4.661993,2574.0,2573.9,0.01]
[1730470204858,6.199793,2574.0,2573.9,0.01]
[1730470207063,9.70887168,2574.0,2573.9,0.01]
[1730470207262,9.199793,2574.0,2573.9,0.01]
[1730470209358,5.4228,2574.0,2573.9,0.01]
[1730470209561,3.88493,2574.1,2573.9,0.01]
[1730470209766,3.8847,2574.2,2573.9,0.01]
[1730470210066,3.88471,2574.2,2573.9,0.01]
[1730470210267,3.88466,2574.3,2573.9,0.01]
[1730470210555,3.88466,2574.3,2573.9,3.89512]
[1730470210764,5.39243,2574.7,2573.9,0.01]
[1730470210925,3.88474,2574.2,2573.9,0.01]
[1730470211637,7.76928,2574.3,2573.9,0.01]
[1730470211823,3.8847,2574.2,2573.9,0.01]
[1730470212165,0.539243,2574.6,2573.9,0.01]
[1730470212365,5.468,2574.0,2573.9,0.01]
[1730470212523,8.468,2574.0,2573.9,0.01]
[1730470212719,3.88651,2573.0,2572.6,1.16903276]
[1730470212934,1.5237,2573.4,2572.7,3.88695]
[1730470212935,3.88631,2573.2,2572.7,3.88695]
[1730470214078,3.88606,2573.3,2572.7,0.55]
[1730470214079,3.88636,2573.1,2572.7,0.55]
[1730470214282,7.77281,2573.1,2572.7,0.55]
[1730470214445,3.88636,2573.1,2572.7,0.55]
[1730470214975,3.8866,2573.0,2572.7,0.55]
[1730470215342,3.88637,2573.1,2572.7,0.55]
[1730470215538,3.88674,2572.9,2572.6,1.16903276]
[1730470216073,3.88696,2572.7,2572.6,0.19183276]
[1730470216276,3.88728,2572.5,2571.9,4.86526]
[1730470216487,3.88713,2572.6,2571.9,4.86528]
[1730470216644,3.88713,2572.6,2572.1,3.88779]
[1730470216842,3.88706,2572.7,2572.2,3.88765]
[1730470217047,3.88713,2572.6,2572.2,4.665194]
[1730470217269,3.88676,2572.9,2572.2,0.777544]
[1730470217442,3.88637,2573.1,2572.5,4.86438]
[1730470217654,3.88621,2573.2,2572.7,3.88689]
[1730470217863,3.0,2573.5,2572.9,3.88654]
[1730470217864,3.88587,2573.5,2572.9,3.88654]
[1730470218063,3.88613,2573.3,2572.9,0.55]
[1730470218265,3.88622,2573.2,2572.9,0.55]
[1730470218463,3.88587,2573.5,2572.9,0.55]
[1730470218798,3.88587,2573.5,2572.9,3.88662]
[1730470219094,3.88589,2573.5,2573.1,0.9772]
[1730470219380,3.0,2574.1,2573.1,0.9772]
[1730470219381,1.5248,2574.0,2573.2,3.8861]
[1730470219593,3.88493,2574.1,2573.7,0.9772]
[1730470219795,3.88502,2574.0,2573.7,0.9772]
[1730470220078,0.05831038,2574.6,2573.8,3.8853]
[1730470220287,3.88477,2574.2,2573.7,4.86264]
[1730470220489,3.88455,2574.3,2573.8,3.88529]
[1730470220643,3.88455,2574.3,2573.9,3.88512]
[1730470221091,3.8847,2574.2,2573.7,5.737397]
[1730470221272,3.8847,2574.2,2573.7,1.852017]
[1730470221448,0.05831038,2574.6,2573.7,1.852017]
[1730470221785,3.88489,2574.1,2573.7,0.9772]
[1730470222159,3.88502,2574.0,2573.7,0.9772]
[1730470222360,3.88526,2573.9,2573.5,3.0]
[1730470222578,3.88531,2573.8,2573.4,0.9772]
[1730470222774,1.5146,2574.1,2573.2,0.19183276]
[1730470223085,3.88577,2573.5,2573.2,0.19183276]
[1730470223254,3.88557,2573.7,2573.2,0.19183276]
[1730470223459,7.77116,2573.7,2573.2,4.07799276]
[1730470223646,3.88525,2573.9,2573.2,4.97215604]
[1730470223846,5.46741,2574.4,2573.4,0.9772]
[1730470224095,0.05831038,2574.6,2574.2,3.88469]
[1730470224278,0.05831038,2574.6,2574.3,4.86174]
[1730470224992,0.05831038,2574.6,2574.3,8.7462]
[1730470225150,0.05831038,2574.6,2574.5,3.88424]
[1730470225349,0.05831038,2574.6,2574.4,3.88439]
[1730470225553,0.05831038,2574.6,2574.5,3.88424]
[1730470226295,0.05831038,2574.6,2574.5,3.96191735]
[1730470226450,0.05831038,2574.6,2574.5,4.81558785]
[1730470226888,3.88335,2575.1,2574.5,4.89326319]
[1730470227059,3.88335,2575.1,2574.6,3.88398]
[1730470227267,3.88364,2574.9,2574.4,3.88428]
[1730470227665,3.88364,2574.9,2574.4,7.7686]
[1730470228078,3.88364,2574.9,2574.4,3.88428]
[1730470228252,3.88362,2575.0,2574.5,3.88424]
[1730470228692,3.88335,2575.1,2574.5,3.88424]
[1730470228693,3.88365,2574.9,2574.5,3.88424]
[1730470228996,3.88422,2574.6,2574.3,0.9772]
[1730470229191,3.88442,2574.4,2574.0,0.97003276]
[1730470229362,3.88455,2574.3,2574.0,0.19183276]
[1730470229690,3.88507,2574.0,2573.5,3.88573]
[1730470230063,3.88507,2574.0,2573.6,3.88559]
[1730470230479,5.29531,2574.2,2573.7,3.88542]
[1730470230785,3.88471,2574.2,2573.7,3.88542]
[1730470231086,3.88465,2574.3,2573.8,3.8852]
[1730470231294,3.88497,2574.1,2573.6,7.7712]
[1730470231450,3.88497,2574.1,2573.6,3.8856]
[1730470231655,3.88497,2574.1,2573.6,3.96330211]
[1730470231884,3.88471,2574.2,2573.7,3.88537]
[1730470232057,3.8844,2574.4,2573.4,7.66396]
[1730470232255,3.88588,2573.5,2573.1,0.7782]
[1730470232449,1.5108,2573.7,2573.0,0.19183276]
[1730470232450,3.88635,2573.2,2573.0,0.19183276]
[1730470232748,1.5108,2573.7,2572.8,0.7782]
[1730470232749,3.88644,2573.1,2572.8,0.7782]
[1730470232986,1.5108,2573.7,2572.8,0.7782]
[1730470232987,0.539612,2573.6,2572.8,0.7782]
[1730470233153,3.88617,2573.3,2572.8,4.66499]
[1730470233346,3.88658,2573.0,2572.4,0.7782]
[1730470233547,3.8871,2572.7,2572.4,0.7782]
[1730470233974,3.88687,2572.8,2572.4,0.7782]
[1730470235707,1.5108,2573.0,2572.4,4.66559]
[1730470235912,3.88617,2573.3,2572.7,3.88689]
[1730470236212,3.88617,2573.3,2572.8,3.88674]
[1730470236789,3.88587,2573.5,2572.5,0.48574228]
[1730470236790,3.88587,2573.5,2572.6,0.55]
[1730470237001,3.88618,2573.3,2572.7,0.07772994]
[1730470237305,7.77198,2573.4,2572.8,0.7782]
[1730470237503,3.88599,2573.4,2572.8,0.7782]
[1730470237803,3.88599,2573.4,2572.9,0.06803941]
[1730470238102,3.88516,2573.9,2572.3,0.19183276]
[1730470238103,3.88527,2573.9,2573.0,0.62772665]
[1730470238294,3.88538,2573.8,2573.1,0.85591547]
[1730470238491,3.88527,2573.9,2573.1,0.92376127]
[1730470238806,3.88473,2574.2,2573.3,0.7782]
[1730470239007,3.88378,2574.9,2573.3,0.7782]
[1730470239008,1.4057,2575.0,2573.7,0.7782]
[1730470239297,3.8847,2574.2,2573.7,0.7782]
[1730470239474,3.88485,2574.1,2573.8,0.06716841]
[1730470239898,3.88485,2574.1,2573.7,0.7782]
[1730470240108,3.88509,2574.0,2573.9,0.06707167]
[1730470240269,3.88509,2574.0,2573.8,0.06716841]
[1730470240463,3.88489,2574.1,2573.7,0.7782]
[1730470240664,3.88489,2574.1,2573.9,0.06707167]
[1730470240864,3.88455,2574.3,2573.8,3.8853]
[1730470241090,1.4656,2574.7,2574.0,0.06697493]
[1730470241293,3.88461,2574.3,2573.9,0.06707167]
[1730470241489,1.4656,2574.7,2573.7,0.7782]
[1730470241490,3.88486,2574.1,2573.7,0.7782]
[1730470241716,1.4656,2574.6,2573.4,11.54984]
[1730470241896,3.88559,2573.7,2573.1,0.97003276]
[1730470242094,3.88577,2573.5,2573.1,0.97003276]
[1730470242300,3.88611,2573.3,2573.1,0.19183276]
[1730470242900,3.88621,2573.2,2572.8,0.7782]
[1730470243115,3.88585,2573.5,2572.8,0.7782]
[1730470243415,3.88495,2574.1,2573.6,3.88559]
[1730470243619,3.88466,2574.3,2573.6,3.88552]
[1730470243918,3.88436,2574.5,2573.4,0.7782]
[1730470244083,3.88435,2574.5,2574.0,3.88499]
[1730470244280,3.88422,2574.6,2574.0,5.051589]
[1730470244584,3.88362,2575.0,2574.3,3.88445]
[1730470244784,3.88365,2574.9,2574.4,3.88433]
[1730470244981,5.37304,2575.2,2574.0,1.166699]
[1730470245189,3.8844,2574.4,2574.0,3.7782]
[1730470245485,3.88394,2574.7,2574.1,3.88477]
[1730470245692,3.88409,2574.6,2574.1,3.88477]
[1730470245929,7.76868,2574.5,2574.0,3.7782]
[1730470246218,3.88462,2574.3,2574.0,0.7782]
[1730470246426,3.88462,2574.3,2573.8,3.0]
[1730470246427,3.88478,2574.2,2573.8,3.0]
[1730470246586,3.88495,2574.1,2573.8,3.0]
[1730470246918,3.88562,2573.6,2573.3,0.7872843]
[1730470247144,3.88545,2573.7,2573.3,0.7872843]
[1730470247624,3.8859,2573.4,2573.3,0.7872843]
[1730470248724,5.38753,2573.8,2573.3,0.7872843]
[1730470248900,3.8859,2573.4,2573.3,0.7872843]
[1730470250309,3.8859,2573.4,2572.7,4.66516]
[1730470250310,3.88638,2573.1,2572.7,4.66516]
[1730470250824,3.88621,2573.2,2572.7,8.55203]
[1730470250987,7.77251,2573.2,2572.7,4.66507]
[1730470251510,3.88601,2573.4,2572.8,3.88676]
[1730470251833,3.88631,2573.2,2572.7,5.520295]